Workbook

Sheet INTRODUCTION
A1: This file goes through the steps
A2: of the MAD calculations, using the data for the full genome.
A3: The MAD calculations are performed excluding the X and Y chromosomes.
A4: Also included in the file are the Spearman rank order results for the corelations between succesive phylostrata.

Sheet FULL DATA with pivot
A1: HGNC | B1: modal value | C1: Chromosome | D1: Count of HGNC | E1: Column Labels
A2: A1BG | B2: 15.1 | C2: 19 | D2: Row Labels | E2: 1 | F2: 2 | G2: 3 | H2: 4 | I2: 5 | J2: 6 | K2: 7 | L2: 8 | M2: 9 | N2: 10 | O2: 11 | P2: 12 | Q2: 13 | R2: 14 | S2: 15 | T2: 16 | U2: 17 | V2: 18 | W2: 19 | X2: 20 | Y2: 21 | Z2: 22 | AA2: MT | AB2: Un | AC2: X | AD2: Y | AE2: Grand Total
A3: A1CF | B3: 2 | C3: 10 | D3: 1 | E3: 502 | F3: 383 | G3: 288 | H3: 200 | I3: 201 | J3: 270 | K3: 215 | L3: 174 | M3: 192 | N3: 202 | O3: 260 | P3: 267 | Q3: 98 | R3: 185 | S3: 168 | T3: 247 | U3: 308 | V3: 69 | W3: 262 | X3: 141 | Y3: 46 | Z3: 127 | AA3: 10 | AC3: 177 | AD3: 11 | AE3: 5003
A4: A2M | B4: 13 | C4: 12 | D4: 2 | E4: 168 | F4: 111 | G4: 85 | H4: 51 | I4: 71 | J4: 84 | K4: 82 | L4: 56 | M4: 57 | N4: 82 | O4: 96 | P4: 82 | Q4: 32 | R4: 51 | S4: 56 | T4: 67 | U4: 105 | V4: 26 | W4: 89 | X4: 44 | Y4: 15 | Z4: 42 | AC4: 58 | AD4: 6 | AE4: 1616
A5: A2ML1 | B5: 1 | C5: 12 | D5: 3 | E5: 74 | F5: 54 | G5: 46 | H5: 50 | I5: 44 | J5: 47 | K5: 61 | L5: 32 | M5: 37 | N5: 38 | O5: 45 | P5: 38 | Q5: 15 | R5: 25 | S5: 26 | T5: 32 | U5: 33 | V5: 14 | W5: 48 | X5: 17 | Y5: 14 | Z5: 24 | AC5: 36 | AD5: 1 | AE5: 851
A6: A3GALT2 | B6: 17 | C6: 1 | D6: 4 | E6: 33 | F6: 18 | G6: 24 | H6: 18 | I6: 18 | J6: 18 | K6: 11 | L6: 12 | M6: 16 | N6: 16 | O6: 29 | P6: 15 | Q6: 1 | R6: 7 | S6: 10 | T6: 15 | U6: 32 | V6: 5 | W6: 18 | X6: 6 | Y6: 2 | Z6: 11 | AC6: 9 | AE6: 344
A7: A4GALT | B7: 2 | C7: 22 | D7: 5 | E7: 1 | AE7: 1
A8: A4GNT | B8: 2 | C8: 3 | D8: 6 | E8: 222 | F8: 145 | G8: 123 | H8: 91 | I8: 110 | J8: 100 | K8: 110 | L8: 83 | M8: 84 | N8: 80 | O8: 117 | P8: 122 | Q8: 35 | R8: 76 | S8: 82 | T8: 80 | U8: 119 | V8: 32 | W8: 88 | X8: 54 | Y8: 17 | Z8: 52 | AB8: 1 | AC8: 65 | AE8: 2088
A9: AAAS | B9: 2 | C9: 12 | D9: 7 | E9: 130 | F9: 83 | G9: 58 | H9: 49 | I9: 42 | J9: 81 | K9: 47 | L9: 41 | M9: 55 | N9: 63 | O9: 57 | P9: 65 | Q9: 17 | R9: 40 | S9: 39 | T9: 47 | U9: 78 | V9: 21 | W9: 52 | X9: 37 | Y9: 18 | Z9: 21 | AA9: 1 | AC9: 46 | AD9: 4 | AE9: 1192
A10: AACS | B10: 1 | C10: 12 | D10: 9 | E10: 44 | F10: 35 | G10: 17 | H10: 15 | I10: 18 | J10: 21 | K10: 20 | L10: 19 | M10: 21 | N10: 18 | O10: 29 | P10: 23 | Q10: 9 | R10: 8 | S10: 17 | T10: 16 | U10: 24 | V10: 5 | W10: 17 | X10: 9 | Z10: 10 | AC10: 11 | AE10: 406
A11: AADAC | B11: 1 | C11: 3 | D11: 10 | E11: 9 | F11: 2 | G11: 10 | H11: 7 | I11: 4 | J11: 2 | K11: 6 | L11: 2 | M11: 3 | N11: 3 | O11: 6 | P11: 2 | Q11: 3 | R11: 2 | T11: 5 | U11: 7 | V11: 2 | W11: 4 | X11: 2 | Z11: 1 | AC11: 2 | AE11: 84
A12: AADACL2 | B12: 1 | C12: 3 | D12: 11 | G12: 1 | Z12: 1 | AE12: 2
A13: AADACL3 | B13: 1 | C13: 1 | D13: 12 | E13: 378 | F13: 273 | G13: 228 | H13: 137 | I13: 179 | J13: 188 | K13: 156 | L13: 125 | M13: 142 | N13: 124 | O13: 244 | P13: 181 | Q13: 71 | R13: 166 | S13: 100 | T13: 124 | U13: 206 | V13: 60 | W13: 226 | X13: 95 | Y13: 46 | Z13: 88 | AA13: 1 | AC13: 146 | AD13: 3 | AE13: 3687
A14: AADACL4 | B14: 1 | C14: 1 | D14: 13 | E14: 63 | F14: 17 | G14: 24 | H14: 18 | I14: 27 | J14: 22 | K14: 21 | L14: 18 | M14: 22 | N14: 12 | O14: 37 | P14: 35 | Q14: 8 | R14: 14 | S14: 13 | T14: 24 | U14: 28 | V14: 6 | W14: 26 | X14: 12 | Y14: 5 | Z14: 21 | AC14: 18 | AD14: 1 | AE14: 492
A15: AADAT | B15: 1 | C15: 4 | D15: 14 | E15: 45 | F15: 30 | G15: 36 | H15: 18 | I15: 15 | J15: 26 | K15: 37 | L15: 8 | M15: 14 | N15: 10 | O15: 30 | P15: 22 | Q15: 9 | R15: 13 | S15: 9 | T15: 11 | U15: 16 | V15: 3 | W15: 19 | X15: 16 | Y15: 9 | Z15: 15 | AC15: 9 | AD15: 1 | AE15: 421
A16: AAED1 | B16: 2 | C16: 9 | D16: 15.1 | E16: 55 | F16: 22 | G16: 21 | H16: 12 | I16: 12 | J16: 19 | K16: 49 | L16: 10 | M16: 17 | N16: 16 | O16: 52 | P16: 27 | Q16: 3 | R16: 51 | S16: 10 | T16: 38 | U16: 38 | V16: 5 | W16: 54 | X16: 13 | Y16: 18 | Z16: 13 | AA16: 1 | AC16: 10 | AE16: 566
A17: AAGAB | B17: 7 | C17: 15 | D17: 15.2 | E17: 97 | F17: 26 | G17: 26 | H17: 19 | I17: 24 | J17: 33 | K17: 44 | L17: 14 | M17: 22 | N17: 9 | O17: 111 | P17: 25 | Q17: 2 | R17: 29 | S17: 11 | T17: 25 | U17: 47 | V17: 8 | W17: 70 | X17: 22 | Y17: 8 | Z17: 7 | AC17: 6 | AE17: 685
A18: AAK1 | B18: 1 | C18: 2 | D18: 17 | E18: 113 | F18: 37 | G18: 43 | H18: 27 | I18: 54 | J18: 68 | K18: 41 | L18: 33 | M18: 47 | N18: 26 | O18: 94 | P18: 57 | Q18: 4 | R18: 32 | S18: 13 | T18: 33 | U18: 57 | V18: 3 | W18: 203 | X18: 40 | Y18: 9 | Z18: 16 | AC18: 126 | AE18: 1176
A19: AAMDC | B19: 1 | C19: 11 | D19: 18 | E19: 29 | F19: 12 | G19: 5 | H19: 9 | I19: 19 | J19: 16 | K19: 3 | L19: 18 | M19: 12 | N19: 9 | O19: 23 | P19: 11 | Q19: 2 | R19: 7 | S19: 5 | T19: 9 | U19: 12 | V19: 1 | W19: 38 | X19: 6 | Y19: 7 | Z19: 4 | AC19: 18 | AD19: 1 | AE19: 276
A20: AAMP | B20: 1 | C20: 2 | D20: 19.1 | E20: 35 | F20: 8 | G20: 10 | H20: 12 | I20: 8 | J20: 11 | K20: 14 | L20: 8 | M20: 9 | N20: 7 | O20: 23 | P20: 16 | Q20: 7 | R20: 4 | S20: 5 | T20: 20 | U20: 17 | V20: 2 | W20: 123 | X20: 10 | Y20: 8 | Z20: 10 | AC20: 69 | AD20: 1 | AE20: 437
A21: AANAT | B21: 3 | C21: 17 | D21: 19.2 | E21: 35 | F21: 17 | G21: 13 | H21: 12 | I21: 14 | J21: 12 | K21: 14 | L21: 11 | M21: 18 | N21: 13 | O21: 32 | P21: 20 | Q21: 3 | R21: 4 | S21: 15 | T21: 29 | U21: 26 | V21: 4 | W21: 67 | X21: 10 | Y21: 11 | Z21: 11 | AC21: 34 | AD21: 18 | AE21: 443
A22: AAR2 | B22: 2 | C22: 20 | D22: 10 | O22: 1 | AE22: 1
A23: AARD | B23: 17 | C23: 8 | D23: 15.2 | E23: 1 | AE23: 1
A24: AARS | B24: 1 | C24: 16 | D24: 17 | K24: 1 | AE24: 1
A25: AARS2 | B25: 1 | C25: 6 | D25: 18 | AC25: 1 | AE25: 1
A26: AARSD1 | B26: 1 | C26: 17 | D26: 19.1 | N26: 1 | AE26: 1
A27: AASDH | B27: 1 | C27: 4 | D27: (blank) | F27: 3 | I27: 1 | J27: 1 | AE27: 5
A28: AASDHPPT | B28: 1 | C28: 11 | D28: Grand Total | E28: 2034 | F28: 1276 | G28: 1058 | H28: 745 | I28: 861 | J28: 1019 | K28: 932 | L28: 664 | M28: 768 | N28: 729 | O28: 1286 | P28: 1008 | Q28: 319 | R28: 714 | S28: 579 | T28: 822 | U28: 1153 | V28: 266 | W28: 1404 | X28: 534 | Y28: 233 | Z28: 474 | AA28: 13 | AB28: 1 | AC28: 841 | AD28: 47 | AE28: 19780
A29: AASS | B29: 2 | C29: 7
A30: AATF | B30: 2 | C30: 17
A31: AATK | B31: 9 | C31: 17
A32: ABAT | B32: 1 | C32: 16
A33: ABCA1 | B33: 1 | C33: 9
A34: ABCA10 | B34: 1 | C34: 17
A35: ABCA12 | B35: 1 | C35: 2
A36: ABCA13 | B36: 1 | C36: 7
A37: ABCA2 | B37: 1 | C37: 9
A38: ABCA3 | B38: 1 | C38: 16
A39: ABCA4 | B39: 1 | C39: 1
A40: ABCA5 | B40: 1 | C40: 17
A41: ABCA6 | B41: 1 | C41: 17
A42: ABCA7 | B42: 1 | C42: 19
A43: ABCA8 | B43: 1 | C43: 17
A44: ABCA9 | B44: 1 | C44: 17
A45: ABCB1 | B45: 1 | C45: 7
A46: ABCB10 | B46: 1 | C46: 1
A47: ABCB11 | B47: 1 | C47: 2
A48: ABCB4 | B48: 1 | C48: 7
A49: ABCB5 | B49: 1 | C49: 7
A50: ABCB6 | B50: 1 | C50: 2
A51: ABCB7 | B51: 1 | C51: X
A52: ABCB8 | B52: 1 | C52: 7
A53: ABCB9 | B53: 1 | C53: 12
A54: ABCC1 | B54: 2 | C54: 16
A55: ABCC10 | B55: 2 | C55: 6
A56: ABCC11 | B56: 15.1 | C56: 16
A57: ABCC12 | B57: 1 | C57: 16
A58: ABCC2 | B58: 2 | C58: 10
A59: ABCC3 | B59: 1 | C59: 17
A60: ABCC4 | B60: 1 | C60: 13
A61: ABCC5 | B61: 4 | C61: 3
A62: ABCC6 | B62: 15.1 | C62: 16
A63: ABCC8 | B63: 12 | C63: 11
A64: ABCC9 | B64: 9 | C64: 12
A65: ABCD1 | B65: 1 | C65: X
A66: ABCD2 | B66: 1 | C66: 12
A67: ABCD3 | B67: 1 | C67: 1
A68: ABCD4 | B68: 1 | C68: 14
A69: ABCE1 | B69: 1 | C69: 4
A70: ABCF1 | B70: 7 | C70: 6
A71: ABCF2 | B71: 1 | C71: 7
A72: ABCF3 | B72: 1 | C72: 3
A73: ABCG1 | B73: 1 | C73: 21
A74: ABCG2 | B74: 1 | C74: 4
A75: ABCG4 | B75: 1 | C75: 11
A76: ABCG5 | B76: 1 | C76: 2
A77: ABCG8 | B77: 2 | C77: 2
A78: ABHD1 | B78: 1 | C78: 2
A79: ABHD10 | B79: 1 | C79: 3
A80: ABHD11 | B80: 1 | C80: 7
A81: ABHD12 | B81: 1 | C81: 20
A82: ABHD12B | B82: 1 | C82: 14
A83: ABHD13 | B83: 1 | C83: 13
A84: ABHD14A | B84: 1 | C84: 3
A85: ABHD14A-ACY1 | B85: 7 | C85: 3
A86: ABHD14B | B86: 1 | C86: 3
A87: ABHD15 | B87: 6 | C87: 17
A88: ABHD16A | B88: 7 | C88: 6
A89: ABHD16B | B89: 15.1 | C89: 20
A90: ABHD17A | B90: 1 | C90: 19
A91: ABHD17B | B91: 1 | C91: 9
A92: ABHD17C | B92: 1 | C92: 15
A93: ABHD18 | B93: 2 | C93: 4
A94: ABHD2 | B94: 1 | C94: 15
A95: ABHD3 | B95: 1 | C95: 18
A96: ABHD4 | B96: 1 | C96: 14
A97: ABHD5 | B97: 1 | C97: 3
A98: ABHD6 | B98: 1 | C98: 3
A99: ABHD8 | B99: 1 | C99: 19
A100: ABI1 | B100: 12 | C100: 10
A101: ABI2 | B101: 7 | C101: 2
A102: ABI3 | B102: 7 | C102: 17
A103: ABI3BP | B103: 12 | C103: 3
A104: ABL1 | B104: 1 | C104: 9
A105: ABL2 | B105: 12 | C105: 1
A106: ABLIM1 | B106: 7 | C106: 10
A107: ABLIM2 | B107: 12 | C107: 4
A108: ABLIM3 | B108: 12 | C108: 5
A109: ABO | B109: 13 | C109: 9
A110: ABR | B110: 3 | C110: 17
A111: ABRA | B111: 12 | C111: 8
A112: ABRACL | B112: 2 | C112: 6
A113: ABRAXAS1 | B113: 2 | C113: 4
A114: ABRAXAS2 | B114: 2 | C114: 10
A115: ABT1 | B115: 1 | C115: 6
A116: ABTB1 | B116: 2 | C116: 3
A117: ABTB2 | B117: 6 | C117: 11
A118: ACAA1 | B118: 1 | C118: 3
A119: ACAA2 | B119: 1 | C119: 18
A120: ACACA | B120: 1 | C120: 17
A121: ACACB | B121: 1 | C121: 12
A122: ACAD10 | B122: 1 | C122: 12
A123: ACAD11 | B123: 1 | C123: 3
A124: ACAD8 | B124: 1 | C124: 11
A125: ACAD9 | B125: 1 | C125: 3
A126: ACADL | B126: 1 | C126: 2
A127: ACADM | B127: 1 | C127: 1
A128: ACADS | B128: 1 | C128: 12
A129: ACADSB | B129: 1 | C129: 10
A130: ACADVL | B130: 1 | C130: 17
A131: ACAN | B131: 12 | C131: 15
A132: ACAP1 | B132: 1 | C132: 17
A133: ACAP2 | B133: 1 | C133: 3
A134: ACAP3 | B134: 1 | C134: 1
A135: ACAT1 | B135: 1 | C135: 11
A136: ACAT2 | B136: 1 | C136: 6
A137: ACBD3 | B137: 4 | C137: 1
A138: ACBD4 | B138: 2 | C138: 17
A139: ACBD5 | B139: 1 | C139: 10
A140: ACBD6 | B140: 2 | C140: 1
A141: ACBD7 | B141: 1 | C141: 10
A142: ACCS | B142: 1 | C142: 11
A143: ACCSL | B143: 1 | C143: 11
A144: ACD | B144: 13 | C144: 16
A145: ACE | B145: 6 | C145: 17
A146: ACE2 | B146: 1 | C146: X
A147: ACER1 | B147: 12 | C147: 19
A148: ACER2 | B148: 6 | C148: 9
A149: ACER3 | B149: 2 | C149: 11
A150: ACHE | B150: 3 | C150: 7
A151: ACIN1 | B151: 2 | C151: 14
A152: ACKR1 | B152: 15.2 | C152: 1
A153: ACKR2 | B153: 14 | C153: 3
A154: ACKR3 | B154: 12 | C154: 2
A155: ACKR4 | B155: 12 | C155: 3
A156: ACLY | B156: 2 | C156: 17
A157: ACMSD | B157: 1 | C157: 2
A158: ACO1 | B158: 1 | C158: 9
A159: ACO2 | B159: 1 | C159: 22
A160: ACOD1 | B160: 1 | C160: 13
A161: ACOT1 | B161: 6 | C161: 14
A162: ACOT11 | B162: 1 | C162: 1
A163: ACOT12 | B163: 12 | C163: 5
A164: ACOT13 | B164: 1 | C164: 6
A165: ACOT2 | B165: 6 | C165: 14
A166: ACOT4 | B166: 6 | C166: 14
A167: ACOT6 | B167: 14 | C167: 14
A168: ACOT7 | B168: 1 | C168: 1
A169: ACOT8 | B169: 1 | C169: 20
A170: ACOT9 | B170: 2 | C170: X
A171: ACOX1 | B171: 1 | C171: 17
A172: ACOX2 | B172: 1 | C172: 3
A173: ACOX3 | B173: 1 | C173: 4
A174: ACOXL | B174: 1 | C174: 2
A175: ACP1 | B175: 1 | C175: 2
A176: ACP2 | B176: 1 | C176: 11
A177: ACP4 | B177: 1 | C177: 19
A178: ACP5 | B178: 1 | C178: 19
A179: ACP6 | B179: 1 | C179: 1
A180: ACP7 | B180: 1 | C180: 19
A181: ACPP | B181: 1 | C181: 3
A182: ACR | B182: 6 | C182: 22
A183: ACRBP | B183: 14 | C183: 12
A184: ACRV1 | B184: 17 | C184: 11
A185: ACSBG1 | B185: 1 | C185: 15
A186: ACSBG2 | B186: 1 | C186: 19
A187: ACSF2 | B187: 1 | C187: 17
A188: ACSF3 | B188: 1 | C188: 16
A189: ACSL1 | B189: 1 | C189: 4
A190: ACSL3 | B190: 1 | C190: 2
A191: ACSL4 | B191: 1 | C191: X
A192: ACSL5 | B192: 1 | C192: 10
A193: ACSL6 | B193: 1 | C193: 5
A194: ACSM1 | B194: 1 | C194: 16
A195: ACSM2A | B195: 1 | C195: 16
A196: ACSM2B | B196: 1 | C196: 16
A197: ACSM3 | B197: 1 | C197: 16
A198: ACSM4 | B198: 1 | C198: 12
A199: ACSM5 | B199: 1 | C199: 16
A200: ACSM6 | B200: 1 | C200: 10
... 19581 more rows

Sheet MAD calculations
A1: Row Labels | B1: 1 | C1: 2 | D1: 3 | E1: 4 | F1: 5 | G1: 6 | H1: 7 | I1: 8 | J1: 9 | K1: 10 | L1: 11 | M1: 12 | N1: 13 | O1: 14 | P1: 15 | Q1: 16 | R1: 17 | S1: 18 | T1: 19 | U1: 20 | V1: 21 | W1: 22 | X1: Row Labels | Y1: MEDIANS | Z1: 1 | AA1: 2 | AB1: 3 | AC1: 4 | AD1: 5 | AE1: 6 | AF1: 7 | AG1: 8 | AH1: 9 | AI1: 10 | AJ1: 11 | AK1: 12 | AL1: 13 | AM1: 14 | AN1: 15 | AO1: 16 | AP1: 17 | AQ1: 18 | AR1: 19 | AS1: 20 | AT1: 21 | AU1: 22 | AV1: MAD | AW1: MAD/median | AX1: Row Labels
A2: 1 | B2: 24.68043265 | C2: 30.01567398 | D2: 27.22117202 | E2: 26.84563758 | F2: 23.34494774 | G2: 26.49656526 | H2: 23.06866953 | I2: 26.20481928 | J2: 25 | K2: 27.70919067 | L2: 20.21772939 | M2: 26.48809524 | N2: 30.72100313 | O2: 25.91036415 | P2: 29.01554404 | Q2: 30.0486618 | R2: 26.71292281 | S2: 25.93984962 | T2: 18.66096866 | U2: 26.40449438 | V2: 19.74248927 | W2: 26.79324895 | X2: 1 | Y2: =MEDIAN(B2:W2) -> 26.44629481 | Z2: =ABS(B2-$Y2) -> 1.765862165 | AA2: =ABS(C2-$Y2) -> 3.569379171 | AB2: 0.7748772126 | AC2: 0.3993427738 | AD2: 3.101347075 | AE2: 0.05027045 | AF2: 3.377625282 | AG2: 0.241475533 | AH2: 1.44629481 | AI2: 1.262895862 | AJ2: 6.228565417 | AK2: 0.04180042804 | AL2: 4.274708325 | AM2: 0.5359306644 | AN2: 2.569249231 | AO2: 3.60236699 | AP2: 0.266628 | AQ2: 0.506445186 | AR2: 7.785326149 | AS2: 0.04180042804 | AT2: 6.70380554 | AU2: 0.3469541351 | AV2: =MEDIAN(Z2:AU2) -> 1.354595336 | AW2: =AV2/Y2 -> 0.05122060938 | AX2: 1
A3: 2 | B3: 8.259587021 | C3: 8.699059561 | D3: 8.034026465 | E3: 6.845637584 | F3: 8.246225319 | G3: 8.243375859 | H3: 8.798283262 | I3: 8.43373494 | J3: 7.421875 | K3: 11.24828532 | L3: 7.465007776 | M3: 8.134920635 | N3: 10.03134796 | O3: 7.142857143 | P3: 9.671848014 | Q3: 8.150851582 | R3: 9.106678231 | S3: 9.77443609 | T3: 6.339031339 | U3: 8.239700375 | V3: 6.43776824 | W3: 8.860759494 | X3: 2 | Y3: =MEDIAN(B3:W3) -> 8.244800589 | Z3: =ABS(B3-$Y3) -> 0.01478643161 | AA3: 0.4542589721 | AB3: 0.210774124 | AC3: 1.399163005 | AD3: 0.001424730356 | AE3: 0.001424730356 | AF3: 0.5534826728 | AG3: 0.1889343507 | AH3: 0.822925589 | AI3: 3.003484733 | AJ3: 0.779792813 | AK3: 0.1098799541 | AL3: 1.786547373 | AM3: 1.101943446 | AN3: 1.427047425 | AO3: 0.09394900753 | AP3: 0.8618776417 | AQ3: 1.529635501 | AR3: 1.90576925 | AS3: 0.005100214509 | AT3: 1.807032349 | AU3: 0.6159589046 | AV3: =MEDIAN(Z3:AU3) -> 0.6978758588 | AW3: =AV3/Y3 -> 0.08464435874 | AX3: 2
A4: 3 | B4: 3.638151426 | C4: 4.231974922 | D4: 4.347826087 | E4: 6.711409396 | F4: 5.110336818 | G4: 4.612365064 | H4: 6.545064378 | I4: 4.819277108 | J4: 4.817708333 | K4: 5.212620027 | L4: 3.499222395 | M4: 3.76984127 | N4: 4.702194357 | O4: 3.50140056 | P4: 4.490500864 | Q4: 3.892944039 | R4: 2.862098873 | S4: 5.263157895 | T4: 3.418803419 | U4: 3.183520599 | V4: 6.008583691 | W4: 5.063291139 | X4: 3 | Y4: 4.551432964 | Z4: 0.9132815379 | AA4: 0.319458042 | AB4: 0.2036068767 | AC4: 2.159976432 | AD4: 0.558903854 | AE4: 0.06093210012 | AF4: 1.993631414 | AG4: 0.2678441448 | AH4: 0.2662753697 | AI4: 0.6611870638 | AJ4: 1.052210569 | AK4: 0.7815916938 | AL4: 0.1507613937 | AM4: 1.050032403 | AN4: 0.06093210012 | AO4: 0.6584889247 | AP4: 1.689334091 | AQ4: 0.7117249311 | AR4: 1.132629545 | AS4: 1.367912364 | AT4: 1.457150727 | AU4: 0.5118581756 | AV4: 0.6864559974 | AW4: 0.1508219506 | AX4: 3
A5: 4 | B5: 1.622418879 | C5: 1.410658307 | D5: 2.268431002 | E5: 2.416107383 | F5: 2.090592334 | G5: 1.766437684 | H5: 1.180257511 | I5: 1.807228916 | J5: 2.083333333 | K5: 2.19478738 | L5: 2.255054432 | M5: 1.488095238 | N5: 0.3134796238 | O5: 0.9803921569 | P5: 1.727115717 | Q5: 1.824817518 | R5: 2.775368604 | S5: 1.879699248 | T5: 1.282051282 | U5: 1.123595506 | V5: 0.8583690987 | W5: 2.320675105 | X5: 4 | Y5: 1.7868333 | Z5: 0.1644144208 | AA5: 0.3761749926 | AB5: 0.4815977021 | AC5: 0.6292740827 | AD5: 0.3037590347 | AE5: 0.02039561583 | AF5: 0.6065757891 | AG5: 0.02039561583 | AH5: 0.2965000335 | AI5: 0.4079540801 | AJ5: 0.4682211325 | AK5: 0.2987380617 | AL5: 1.473353676 | AM5: 0.806441143 | AN5: 0.05971758308 | AO5: 0.03798421841 | AP5: 0.9885353038 | AQ5: 0.09286594829 | AR5: 0.5047820178 | AS5: 0.6632377942 | AT5: 0.9284642011 | AU5: 0.5338418057 | AV5: 0.4380876063 | AW5: 0.2451754209 | AX5: 4
A6: 6 | B6: 10.96361849 | C6: 11.36363636 | D6: 11.62570888 | E6: 12.2147651 | F6: 12.77584204 | G6: 9.813542689 | H6: 11.80257511 | I6: 12.5 | J6: 10.9375 | K6: 10.9739369 | L6: 9.097978227 | M6: 12.1031746 | N6: 10.97178683 | O6: 10.6442577 | P6: 14.16234888 | Q6: 9.732360097 | R6: 10.32090199 | S6: 12.03007519 | T6: 6.267806268 | U6: 10.11235955 | V6: 7.296137339 | W6: 10.97046414 | X6: 6 | Y6: 10.97112548 | Z6: 0.007506998696 | AA6: 0.3925108792 | AB6: 0.6545834002 | AC6: 1.243639616 | AD6: 1.80471656 | AE6: 1.157582796 | AF6: 0.8314496229 | AG6: 1.528874516 | AH6: 0.03362548444 | AI6: 0.002811415424 | AJ6: 1.873147257 | AK6: 1.132049119 | AL6: 0.0006613494174 | AM6: 0.3268677814 | AN6: 3.191223393 | AO6: 1.238765387 | AP6: 0.6502234896 | AQ6: 1.058949704 | AR6: 4.703319217 | AS6: 0.8587659339 | AT6: 3.674988145 | AU6: 0.0006613494174 | AV6: 0.9588578187 | AW6: 0.08739830932 | AX6: 6
A7: 7 | B7: 6.391347099 | C7: 6.504702194 | D7: 5.482041588 | E7: 6.577181208 | F7: 4.87804878 | G7: 7.948969578 | H7: 5.042918455 | I7: 6.174698795 | J7: 7.161458333 | K7: 8.641975309 | L7: 4.432348367 | M7: 6.448412698 | N7: 5.329153605 | O7: 5.602240896 | P7: 6.735751295 | Q7: 5.717761557 | R7: 6.764960971 | S7: 7.894736842 | T7: 3.703703704 | U7: 6.928838951 | V7: 7.725321888 | W7: 4.430379747 | X7: 7 | Y7: 6.419879899 | Z7: 0.02853279955 | AA7: 0.0848222955 | AB7: 0.937838311 | AC7: 0.1573013092 | AD7: 1.541831118 | AE7: 1.529089679 | AF7: 1.376961444 | AG7: 0.2451811037 | AH7: 0.7415784345 | AI7: 2.22209541 | AJ7: 1.987531532 | AK7: 0.02853279955 | AL7: 1.090726294 | AM7: 0.8176390025 | AN7: 0.3158713965 | AO7: 0.7021183417 | AP7: 0.3450810725 | AQ7: 1.474856943 | AR7: 2.716176195 | AS7: 0.5089590524 | AT7: 1.30544199 | AU7: 1.989500152 | AV7: 0.8777386567 | AW7: 0.1367219746 | AX7: 7
A8: 9 | B8: 2.163225172 | C8: 2.742946708 | D8: 1.606805293 | E8: 2.013422819 | F8: 2.090592334 | G8: 2.060843965 | H8: 2.145922747 | I8: 2.861445783 | J8: 2.734375 | K8: 2.469135802 | L8: 2.255054432 | M8: 2.281746032 | N8: 2.821316614 | O8: 1.120448179 | P8: 2.936096718 | Q8: 1.946472019 | R8: 2.081526453 | S8: 1.879699248 | T8: 1.210826211 | U8: 1.685393258 | V8: 0 | W8: 2.109704641 | X8: 9 | Y8: 2.100148488 | Z8: 0.06307668415 | AA8: 0.6427982205 | AB8: 0.4933431949 | AC8: 0.08672566913 | AD8: 0.009556153428 | AE8: 0.03930452325 | AF8: 0.04577425886 | AG8: 0.7612972952 | AH8: 0.6342265121 | AI8: 0.3689873145 | AJ8: 0.1549059444 | AK8: 0.1815975438 | AL8: 0.7211681265 | AM8: 0.9797003087 | AN8: 0.8359482306 | AO8: 0.1536764685 | AP8: 0.01862203519 | AQ8: 0.2204492398 | AR8: 0.8893222771 | AS8: 0.4147552295 | AT8: 2.100148488 | AU8: 0.009556153428 | AV8: 0.2947182772 | AW8: 0.1403321141 | AX8: 9
A9: 10 | B9: 0.4424778761 | C9: 0.1567398119 | D9: 1.039697543 | E9: 0.9395973154 | F9: 0.4645760743 | G9: 0.1962708538 | H9: 0.643776824 | I9: 0.3012048193 | J9: 0.390625 | K9: 0.4115226337 | L9: 0.5443234837 | M9: 0.1984126984 | N9: 0.9404388715 | O9: 0.2801120448 | P9: 0 | Q9: 0.6082725061 | R9: 0.607111882 | S9: 0.7518796992 | T9: 0.2849002849 | U9: 0.3745318352 | V9: 0 | W9: 0.4219409283 | X9: 10 | Y9: 0.416731781 | Z9: 0.0257460951 | AA9: 0.2599919691 | AB9: 0.6229657615 | AC9: 0.5228655344 | AD9: 0.04784429332 | AE9: 0.2204609272 | AF9: 0.227045043 | AG9: 0.1155269617 | AH9: 0.02610678101 | AI9: 0.005209147263 | AJ9: 0.1275917027 | AK9: 0.2183190826 | AL9: 0.5237070905 | AM9: 0.1366197362 | AN9: 0.416731781 | AO9: 0.1915407251 | AP9: 0.190380101 | AQ9: 0.3351479182 | AR9: 0.1318314961 | AS9: 0.0421999458 | AT9: 0.416731781 | AU9: 0.005209147263 | AV9: 0.1909604131 | AW9: 0.4582333812 | AX9: 10
A10: 12 | B10: 18.5840708 | C10: 21.39498433 | D10: 21.64461248 | E10: 18.38926174 | F10: 20.78977933 | G10: 18.44946026 | H10: 16.73819742 | I10: 18.8253012 | J10: 18.48958333 | K10: 17.00960219 | L10: 18.97356143 | M10: 17.95634921 | N10: 22.25705329 | O10: 23.24929972 | P10: 17.27115717 | Q10: 15.08515815 | R10: 17.86643539 | S10: 22.55639098 | T10: 16.0968661 | U10: 17.79026217 | V10: 19.74248927 | W10: 18.77637131 | X10: 12 | Y10: 18.53682706 | Z10: 0.04724373156 | AA10: 2.858157261 | AB10: 3.107785411 | AC10: 0.1475653199 | AD10: 2.252952261 | AE10: 0.08736680974 | AF10: 1.79862964 | AG10: 0.2884741399 | AH10: 0.04724373156 | AI10: 1.52722487 | AJ10: 0.4367343659 | AK10: 0.5804778585 | AL10: 3.720226227 | AM10: 4.712472655 | AN10: 1.265669897 | AO10: 3.451668914 | AP10: 0.6703916789 | AQ10: 4.019563913 | AR10: 2.439960968 | AS10: 0.7465648926 | AT10: 1.205662205 | AU10: 0.2395442431 | AV10: 1.235666051 | AW10: 0.06666006254 | AX10: 12
A11: 13 | B11: 3.097345133 | C11: 1.332288401 | D11: 2.268431002 | E11: 2.416107383 | F11: 3.135888502 | G11: 2.158979392 | H11: 2.253218884 | I11: 2.710843373 | J11: 2.864583333 | K11: 1.646090535 | L11: 2.877138414 | M11: 3.472222222 | N11: 2.507836991 | O11: 1.960784314 | P11: 2.245250432 | Q11: 2.919708029 | R11: 2.428447528 | S11: 2.255639098 | T11: 1.851851852 | U11: 2.247191011 | V11: 2.145922747 | W11: 4.430379747 | X11: 13 | Y11: 2.342269192 | Z11: 0.7550759405 | AA11: 1.009980791 | AB11: 0.07383819033 | AC11: 0.07383819033 | AD11: 0.7936193095 | AE11: 0.1832898007 | AF11: 0.0890503081 | AG11: 0.3685741813 | AH11: 0.5223141411 | AI11: 0.6961786572 | AJ11: 0.5348692215 | AK11: 1.12995303 | AL11: 0.1655677984 | AM11: 0.3814848785 | AN11: 0.09701876044 | AO11: 0.577438837 | AP11: 0.08617833597 | AQ11: 0.08663009448 | AR11: 0.4904173404 | AS11: 0.09507818098 | AT11: 0.1963464454 | AU11: 2.088110555 | AV11: 0.3750295299 | AW11: 0.1601137611 | AX11: 13
A12: 14 | B12: 2.212389381 | C12: 2.351097179 | D12: 3.402646503 | E12: 2.416107383 | F12: 1.742160279 | G12: 2.551521099 | H12: 3.969957082 | I12: 1.204819277 | J12: 1.822916667 | K12: 1.371742112 | L12: 2.33281493 | M12: 2.182539683 | N12: 2.821316614 | O12: 1.820728291 | P12: 1.554404145 | Q12: 1.338199513 | R12: 1.387684302 | S12: 1.127819549 | T12: 1.353276353 | U12: 2.996254682 | V12: 3.862660944 | W12: 3.164556962 | X12: 14 | Y12: 2.197464532 | Z12: 0.014924849 | AA12: 0.1536326471 | AB12: 1.205181971 | AC12: 0.218642851 | AD12: 0.4553042528 | AE12: 0.3540565676 | AF12: 1.77249255 | AG12: 0.9926452544 | AH12: 0.3745478649 | AI12: 0.8257224191 | AJ12: 0.1353503985 | AK12: 0.014924849 | AL12: 0.6238520829 | AM12: 0.3767362402 | AN12: 0.6430603865 | AO12: 0.8592650182 | AP12: 0.8097802297 | AQ12: 1.069644983 | AR12: 0.8441881783 | AS12: 0.7987901501 | AT12: 1.665196413 | AU12: 0.9670924305 | AV12: 0.7209252683 | AW12: 0.3280714014 | AX12: 14
A13: 15.1 | B13: 2.704031465 | C13: 1.724137931 | D13: 1.984877127 | E13: 1.610738255 | F13: 1.393728223 | G13: 1.864573111 | H13: 5.25751073 | I13: 1.506024096 | J13: 2.213541667 | K13: 2.19478738 | L13: 4.043545879 | M13: 2.678571429 | N13: 0.9404388715 | O13: 7.142857143 | P13: 1.727115717 | Q13: 4.622871046 | R13: 3.295750217 | S13: 1.879699248 | T13: 3.846153846 | U13: 2.434456929 | V13: 7.725321888 | W13: 2.742616034 | X13: 15.1 | Y13: 2.323999298 | Z13: 0.3800321673 | AA13: 0.5998613667 | AB13: 0.3391221711 | AC13: 0.7132610427 | AD13: 0.9302710748 | AE13: 0.4594261869 | AF13: 2.933511432 | AG13: 0.8179752014 | AH13: 0.1104576311 | AI13: 0.1292119178 | AJ13: 1.719546581 | AK13: 0.3545721308 | AL13: 1.383560426 | AM13: 4.818857845 | AN13: 0.596883581 | AO13: 2.298871748 | AP13: 0.9717509191 | AQ13: 0.4443000496 | AR13: 1.522154548 | AS13: 0.1104576311 | AT13: 5.401322591 | AU13: 0.418616736 | AV13: 0.6565612047 | AW13: 0.2825135125 | AX13: 15.1
A14: 15.2 | B14: 4.818092429 | C14: 2.037617555 | D14: 2.457466919 | E14: 2.55033557 | F14: 2.787456446 | G14: 3.238469087 | H14: 4.721030043 | I14: 2.108433735 | J14: 2.864583333 | K14: 1.234567901 | L14: 8.631415241 | M14: 2.48015873 | N14: 0.6269592476 | O14: 4.06162465 | P14: 1.899827288 | Q14: 3.04136253 | R14: 4.076322637 | S14: 3.007518797 | T14: 4.985754986 | U14: 4.119850187 | V14: 3.433476395 | W14: 1.476793249 | X14: 15.2 | Y14: 2.936051065 | Z14: 1.882041364 | AA14: 0.8984335103 | AB14: 0.4785841464 | AC14: 0.3857154947 | AD14: =ABS(F14-$Y14) -> 0.1485946192 | AE14: =ABS(G14-$Y14) -> 0.3024180222 | AF14: =ABS(H14-$Y14) -> 1.784978978 | AG14: =ABS(I14-$Y14) -> 0.8276173302 | AH14: =ABS(J14-$Y14) -> 0.07146773183 | AI14: =ABS(K14-$Y14) -> 1.701483164 | AJ14: =ABS(L14-$Y14) -> 5.695364176 | AK14: =ABS(M14-$Y14) -> 0.455892335 | AL14: =ABS(N14-$Y14) -> 2.309091818 | AM14: =ABS(O14-$Y14) -> 1.125573585 | AN14: =ABS(P14-$Y14) -> 1.036223777 | AO14: =ABS(Q14-$Y14) -> 0.1053114653 | AP14: =ABS(R14-$Y14) -> 1.140271571 | AQ14: =ABS(S14-$Y14) -> 0.07146773183 | AR14: =ABS(T14-$Y14) -> 2.049703921 | AS14: =ABS(U14-$Y14) -> 1.183799122 | AT14: =ABS(V14-$Y14) -> 0.4974253297 | AU14: =ABS(W14-$Y14) -> 1.459257816 | AV14: 0.9673286435 | AW14: 0.3294658785 | AX14: 15.2
A15: 17 | B15: 5.555555556 | C15: 2.89968652 | D15: 4.064272212 | E15: 3.624161074 | F15: 6.271777003 | G15: 6.673209028 | H15: 4.506437768 | I15: 4.969879518 | J15: 6.119791667 | K15: 3.566529492 | L15: 7.309486781 | M15: 5.654761905 | N15: 1.253918495 | O15: 4.481792717 | P15: 2.245250432 | Q15: 4.01459854 | R15: 4.943625325 | S15: 1.127819549 | T15: 14.45868946 | U15: 7.490636704 | V15: 3.862660944 | W15: 3.375527426 | X15: 17 | Y15: 4.494115243 | Z15: 1.061440313 | AA15: =ABS(C15-$Y15) -> 1.594428722 | AB15: =ABS(D15-$Y15) -> 0.4298430309 | AC15: =ABS(E15-$Y15) -> 0.8699541688 | AD15: 1.777661761 | AE15: 2.179093786 | AF15: 0.01232252558 | AG15: 0.4757642754 | AH15: 1.625676424 | AI15: 0.9275857502 | AJ15: 2.815371538 | AK15: 1.160646662 | AL15: 3.240196747 | AM15: 0.01232252558 | AN15: 2.248864811 | AO15: 0.4795167025 | AP15: 0.4495100826 | AQ15: 3.366295694 | AR15: 9.964574216 | AS15: 2.996521461 | AT15: 0.6314542985 | AU15: 1.118587817 | AV15: 1.139617239 | AW15: 0.2535798879 | AX15: 17
A16: 18 | B16: 1.425762045 | C16: 0.9404388715 | D16: 0.4725897921 | E16: 1.208053691 | F16: 2.206736353 | G16: 1.57016683 | H16: 0.321888412 | I16: 2.710843373 | J16: 1.5625 | K16: 1.234567901 | L16: 1.788491446 | M16: 1.091269841 | N16: 0.6269592476 | O16: 0.9803921569 | P16: 0.8635578584 | Q16: 1.094890511 | R16: 1.040763226 | S16: 0.3759398496 | T16: 2.706552707 | U16: 1.123595506 | V16: 3.004291845 | W16: 0.8438818565 | X16: 18 | Y16: 1.109243008 | Z16: 0.3165190369 | AA16: 0.1688041368 | AB16: 0.6366532162 | AC16: 0.09881068299 | AD16: 1.097493345 | AE16: 0.4609238219 | AF16: 0.7873545963 | AG16: 1.601600365 | AH16: 0.4532569917 | AI16: 0.125324893 | AJ16: 0.6792484381 | AK16: 0.01797316701 | AL16: 0.4822837606 | AM16: 0.1288508514 | AN16: 0.2456851499 | AO16: 0.01435249733 | AP16: 0.06847978192 | AQ16: 0.7333031587 | AR16: 1.597309698 | AS16: 0.01435249733 | AT16: 1.895048837 | AU16: 0.2653611517 | AV16: 0.3848880143 | AW16: 0.3469825921 | AX16: 18
A17: 19.1 | B17: 1.720747296 | C17: 0.6269592476 | D17: 0.9451795841 | E17: 1.610738255 | F17: 0.9291521487 | G17: 1.079489696 | H17: 1.502145923 | I17: 1.204819277 | J17: 1.171875 | K17: 1.09739369 | L17: 1.788491446 | M17: 1.587301587 | N17: 2.194357367 | O17: 0.5602240896 | P17: 0.8635578584 | Q17: 2.433090024 | R17: 1.474414571 | S17: 0.7518796992 | T17: 8.760683761 | U17: 1.872659176 | V17: 3.433476395 | W17: 2.109704641 | X17: 19.1 | Y17: 1.488280247 | Z17: 0.2324670493 | AA17: 0.8613209991 | AB17: 0.5431006626 | AC17: 0.1224580083 | AD17: 0.5591280981 | AE17: 0.4087905509 | AF17: 0.01386567603 | AG17: 0.2834609696 | AH17: 0.3164052467 | AI17: 0.3908865567 | AJ17: 0.3002111996 | AK17: 0.09902134059 | AL17: 0.7060771201 | AM17: 0.9280561571 | AN17: 0.6247223883 | AO17: 0.9448097776 | AP17: 0.01386567603 | AQ17: 0.7364005475 | AR17: 7.272403514 | AS17: 0.3843789293 | AT17: 1.945196148 | AU17: 0.6214243946 | AV17: 0.4759456068 | AW17: 0.3197956889 | AX17: 19.1
A18: 19.2 | B18: 1.720747296 | C18: 1.332288401 | D18: 1.228733459 | E18: 1.610738255 | F18: 1.62601626 | G18: 1.177625123 | H18: 1.502145923 | I18: 1.656626506 | J18: 2.34375 | K18: 1.783264746 | L18: 2.488335925 | M18: 1.984126984 | N18: 0.9404388715 | O18: 0.5602240896 | P18: 2.590673575 | Q18: 3.527980535 | R18: 2.25498699 | S18: 1.503759398 | T18: 4.772079772 | U18: 1.872659176 | V18: 4.721030043 | W18: 2.320675105 | X18: 19.2 | Y18: 1.752006021 | Z18: 0.03125872513 | AA18: 0.4197176198 | AB18: 0.5232725617 | AC18: 0.1412677661 | AD18: 0.1259897609 | AE18: 0.5743808984 | AF18: 0.2498600984 | AG18: 0.09537951507 | AH18: 0.5917439789 | AI18: 0.03125872513 | AJ18: 0.7363299043 | AK18: 0.232120963 | AL18: 0.8115671496 | AM18: 1.191781931 | AN18: 0.838667554 | AO18: 1.775974514 | AP18: 0.5029809694 | AQ18: 0.2482466226 | AR18: 3.020073751 | AS18: 0.1206531549 | AT18: 2.969024022 | AU18: 0.5686690844 | AV18: 0.5131267656 | AW18: 0.2928795674 | AX18: 19.2
A19: Grand Total | B19: 100 | C19: 100 | D19: 100 | E19: 100 | F19: 100 | G19: 100 | H19: 100 | I19: 100 | J19: 100 | K19: 100 | L19: 100 | M19: 100 | N19: 100 | O19: 100 | P19: 100 | Q19: 100 | R19: 100 | S19: 100 | T19: 100 | U19: 100 | V19: 100 | W19: 100 | X19: Grand Total | AX19: Grand Total
A20: Row Labels | B20: 1 | C20: 2 | D20: 3 | E20: 4 | F20: 5 | G20: 6 | H20: 7 | I20: 8 | J20: 9 | K20: 10 | L20: 11 | M20: 12 | N20: 13 | O20: 14 | P20: 15 | Q20: 16 | R20: 17 | S20: 18 | T20: 19 | U20: 20 | V20: 21 | W20: 22 | X20: Row Labels | AX20: Row Labels

Sheet Spearmen
A1: 18 | B1: 19.1 | C1: 19.2
A2: 17 | B2: 0.504 | C2: 0.222 | D2: 0.156
B3: 0.0122 | C3: 0.294 | D3: 0.463
B4: 24 | C4: 24 | D4: 24
A6: 18 | C6: 0.39 | D6: 0.514
C7: 0.0593 | D7: 0.0104
C8: 24 | D8: 24
A10: 19.1 | D10: 0.63
D11: 0.000971
D12: 24
A14: 19.2

Sheet r and P values
B3: 13 | C3: 14 | D3: 15.1 | E3: 15.2 | F3: 17 | G3: 18 | H3: 19.1 | I3: 19.2
A4: 12 | B4: 0.168 | C4: 0.217 | D4: -0.0539 | E4: 0.00348 | F4: -0.158 | G4: -0.21 | H4: -0.454 | I4: -0.616
B5: 0.429 | C5: 0.304 | D5: 0.799 | E5: 0.985 | F5: 0.456 | G5: 0.32 | H5: 0.0259 | I5: 0.0014
B6: 24 | C6: 24 | D6: 24 | E6: 24 | F6: 24 | G6: 24 | H6: 24 | I6: 24
A8: 13 | C8: 0.0922 | D8: 0.08 | E8: 0.103 | F8: 0.14 | G8: -0.0878 | H8: 0.115 | I8: 0.00087
C9: 0.664 | D9: 0.706 | E9: 0.626 | F9: 0.51 | G9: 0.679 | H9: 0.589 | I9: 0.995
C10: 24 | D10: 24 | E10: 24 | F10: 24 | G10: 24 | H10: 24 | I10: 24
A12: 14 | D12: 0.21 | E12: 0.13 | F12: -0.112 | G12: -0.281 | H12: 0.0791 | I12: -0.302
D13: 0.32 | E13: 0.542 | F13: 0.597 | G13: 0.181 | H13: 0.709 | I13: 0.15
D14: 24 | E14: 24 | F14: 24 | G14: 24 | H14: 24 | I14: 24
A16: 15.1 | E16: 0.73 | F16: 0.219 | G16: -0.0965 | H16: 0.138 | I16: 0.155
E17: 2e-07 | F17: 0.3 | G17: 0.65 | H17: 0.515 | I17: 0.466
E18: 24 | F18: 24 | G18: 24 | H18: 24 | I18: 24
A20: 15.2 | F20: 0.536 | G20: 0.117 | H20: 0.053 | I20: 0.00261
F21: 0.00716 | G21: 0.583 | H21: 0.802 | I21: 0.989
F22: 24 | G22: 24 | H22: 24 | I22: 24
A24: 17 | G24: 0.504 | H24: 0.222 | I24: 0.156
G25: 0.0122 | H25: 0.294 | I25: 0.463
G26: 24 | H26: 24 | I26: 24
A28: 18 | H28: 0.39 | I28: 0.514
H29: 0.0593 | I29: 0.0104
H30: 24 | I30: 24
A32: 19.1 | I32: 0.63
I33: 0.000971
I34: 24
A36: 19.2

Sheet P values cleaned up
B1: 13 | C1: 14 | D1: 15.1 | E1: 15.2 | F1: 17 | G1: 18 | H1: 19.1 | I1: 19.2
A2: 12 | B2: 0.429 | C2: 0.304 | D2: 0.799 | E2: 0.985 | F2: 0.456 | G2: 0.32 | H2: 0.0259 | I2: 0.0014
A3: 13 | C3: 0.664 | D3: 0.706 | E3: 0.626 | F3: 0.51 | G3: 0.679 | H3: 0.589 | I3: 0.995
A4: 14 | D4: 0.32 | E4: 0.542 | F4: 0.597 | G4: 0.181 | H4: 0.709 | I4: 0.15
A5: 15.1 | E5: 2e-07 | F5: 0.3 | G5: 0.65 | H5: 0.515 | I5: 0.466
A6: 15.2 | F6: 0.00716 | G6: 0.583 | H6: 0.802 | I6: 0.989
A7: 17 | G7: 0.0122 | H7: 0.294 | I7: 0.463
A8: 18 | H8: 0.0593 | I8: 0.0104
A9: 19.1 | I9: 0.000971
B11: signifies P<0.05
